Cogmind - Beta 17 @@@ ROGUE MODE // 2026.07.30 @ 11:13:06 Player: TheTravelingGuy Result: Destroyed by SX-OOL(R) with Subdweller Machine Gun Performance ------------- Evolutions (0) 0 Regions Visited (2) 400 Robots Destroyed (19) 95 Value Destroyed (646) 646 Prototype IDs (1) 20 Alien Tech Used (0) 0 Bonus (0) 0 TOTAL SCORE: 1161 Bonus ------- None Cogmind --------- Core Integrity 0/250 Matter 300/300 Energy 108/200 System Corruption 0% Temperature Cool (0) Movement Rolling (110) Location -10/Subcaves Parts ------- > --- POWER (1) -------- Subdweller Power Source > --- PROPULSION (2) --- Subdweller Monowheel Subdweller Monowheel > --- UTILITY (2) ------ Small Storage Unit Sensor Array > --- WEAPON (2) ------- Powered Cannon > --- INVENTORY (8) ---- Improved Heat Sink Small Matter Pod (50) Sensor Array Makeshift Light Armor Plating Riot Gun Subdweller Laser Barrage Gun Grenade Launcher Peak State ------------ > --- POWER ------------ Subdweller Power Source Subdweller Power Source > --- PROPULSION ------- Subdweller Monowheel Subdweller Monowheel > --- UTILITY ---------- Small Storage Unit Sensor Array > --- WEAPON ----------- Powered Cannon > --- INVENTORY -------- Improved Heat Sink Small Matter Pod Sensor Array Propulsion Shielding Subdweller Laser Subdweller Beam Cannon Subdweller Machine Gun Grenade Launcher [Rating: 25] Favorites ----------- Power Light Ion Engine Engine Light Ion Engine Power Core Light Nuclear Core Propulsion Light Treads Treads Light Treads Wheel Subdweller Monowheel Utility Small Storage Unit Device Sensor Array Storage Small Storage Unit Weapon Subdweller Beam Cannon Energy Gun Small Laser Energy Cannon Subdweller Beam Cannon Ballistic Gun Light Assault Rifle Build | -11 -10 -10 ------- Run | Yrd Mat Sub Slots Evolved . | . . . Power . | . . . Propulsion . | . . . Utility . | . . . Weapon . | . . . Parts Attached 21 | 7 2 12 Power 6 | 1 1 4 Engine 5 | 1 . 4 Core 1 | . 1 . Reactor . | . . . Propulsion 6 | 2 . 4 Treads 3 | 2 . 1 Leg . | . . . Wheel 3 | . . 3 Hover . | . . . Flight . | . . . Utility 3 | 2 1 . Device 2 | 1 1 . Storage 1 | 1 . . Processor . | . . . Hackware . | . . . Protection . | . . . Artifact . | . . . Weapon 6 | 2 . 4 Energy Gun 2 | 1 . 1 Energy Cannon 3 | . . 3 Ballistic Gun 1 | 1 . . Ballistic Cannon . | . . . Launcher . | . . . Special Weapon . | . . . Impact Weapon . | . . . Slashing Weapon . | . . . Piercing Weapon . | . . . Special Melee Weapon . | . . . Unidentified Prototypes 1 | . . 1 Parts Lost 5 | . . 5 Power 2 | . . 2 Propulsion 2 | . . 2 Utility . | . . . Weapon 1 | . . 1 Highest Loss Streak 1 | . . 1 To Critical Strikes . | . . . Average Backups 7 | 4 7 7 Power . | . 1 . Propulsion . | 3 2 . Utility 3 | . 2 3 Weapon 2 | . 1 2 Tool/Special . | . . . Unused Backups 15 | . 4 11 Power . | . . . Propulsion 4 | . 4 . Utility 6 | . . 6 Weapon 5 | . . 5 Tool/Special . | . . . Average Slot Usage (%) 90 | . 100 88 Engine 9 | . 13 8 Core 4 | . . 5 Treads 18 | . 28 16 Wheel 3 | . . 4 Device 13 | . 14 13 Storage 13 | . 14 13 Energy Gun 5 | . 14 3 Energy Cannon 13 | . . 17 Ballistic Gun 5 | . 14 3 Peak Build Rating 25 | 7 9 25 Average Rating 11 | 5 7 12 On Entrance 5 | . 7 9 Avg Prop Armor Cover (%) . | . . . Naked Turns . | . . . Heaviest Build 27 | 11 13 27 Greatest Support 40 | 40 40 40 Greatest Overweight (x) 3 | 3 . 1 Average Overweight (x) . | . . . Largest Inventory Capacity 8 | 8 8 8 Average Capacity 7 | 7 8 8 Most Carried 8 | 7 8 8 Average Carried 7 | 4 7 7 Final Capacity 8 | 8 8 8 Final Carried 8 | 6 7 8 Class Distribution -------------------- 95% | Mutant 4% | Scavenger-Mutant Dominant Class ---------------- Mutant | -10/Materials Mutant | -10/Subcaves Resources | -11 -10 -10 ----------- Run | Yrd Mat Sub Matter Collected 492 | 247 110 135 Remotely . | . . . Salvage Created 788 | 22 130 636 Parts 44 | 3 8 33 Haulers Intercepted . | . . . Recyclers Shooed . | . . . Parts Field Recycled . | . . . Retrieved Matter . | . . . Parts Self-Destructed 16 | . . 16 Prevented . | . . . Parts Restored . | . . . Kills | -11 -10 -10 ------- Run | Yrd Mat Sub Combat Hostiles Destroyed 18 | . 5 13 Guns 7 | . 5 2 Cannons 10 | . . 10 Classes Destroyed 4 | 1 2 1 Tunneler 1 | 1 . . Swarmer 3 | . 3 . Grunt 5 | . 2 3 Subdweller 10 | . . 10 Best Kill Streak 3 | 1 3 2 Combat Bots Only 3 | . 3 2 Max Kills in Single Turn 1 | 1 1 1 Gunslinging . | . . . Exploded . | . . . Melee . | . . . Uniques/NPCs Destroyed . | . . . Combat | -11 -10 -10 -------- Run | Yrd Mat Sub Hostile Shots Fired 96 | . 36 60 Missed 27 | . 13 14 Hits 69 | . 23 46 Projectile 69 | . 23 46 Critical Strikes 1 | . . 1 Damage Taken 1133 | . 239 894 Core 265 | . 15 250 Absorbed by Shields . | . . . Core Remaining (%) 100 | 100 . . Volleys Fired 107 | 2 18 87 Largest 2 | 2 2 2 Hottest 160 | 60 60 160 Shots Fired 163 | 4 36 123 Gun 66 | 4 36 26 Cannon 97 | . . 97 Launcher . | . . . Special . | . . . Kinetic 32 | 2 18 12 Thermal 131 | 2 18 111 Explosive . | . . . Electromagnetic . | . . . Robot Hit Streak 14 | 2 10 14 Robot Miss Streak 3 | 1 2 3 Penetration Max . | . . . Secondary Targets 1 | . 1 . Max Gunslinging Chain 1 | . 1 . Shots Hit Robots 84 | 2 29 53 Core Hits 32 | 2 11 19 Critical Kills 1 | . . 1 Critical Parts Destroyed . | . . . Critical Strikes 1 | . . 1 Meltdown 1 | . . 1 Melee Attacks . | . . . Impact . | . . . Slashing . | . . . Piercing . | . . . Sneak Attacks . | . . . Combat Hostiles . | . . . Follow-up Attacks . | . . . Damage Inflicted 1641 | 20 277 1344 Guns 464 | 20 277 167 Cannons 1177 | . . 1177 Explosions . | . . . Melee . | . . . Ramming . | . . . Kinetic 202 | 9 112 81 Thermal 1439 | 11 165 1263 Explosive . | . . . Electromagnetic . | . . . Impact . | . . . Slashing . | . . . Piercing . | . . . Highest Corruption . | . . . Average Corruption . | . . . Corruption Purged . | . . . Corruption Blocked . | . . . Overload Shots . | . . . Overflow Damage . | . . . Projectiles . | . . . Explosions . | . . . Melee . | . . . Knockbacks . | . . . Impact . | . . . Kinetic . | . . . Secondary . | . . . Self-Inflicted Damage . | . . . Shots . | . . . Rammed . | . . . Targets Rammed . | . . . Kicked . | . . . Crushed . | . . . Highest Temperature 132 | 20 132 106 Average Temperature 33 | 12 56 26 Received Heat Transfer 246 | . 72 174 Siege Activations . | . . . Martial Activations . | . . . Shielding Activations . | . . . Robots Disrupted . | . . . Combat Hostiles . | . . . Robots Corrupted . | . . . Combat Hostiles . | . . . Parts Fried . | . . . Impact Corruptions . | . . . Robots Melted 1 | . . 1 Combat Hostiles 1 | . . 1 Parts Melted 5 | . 1 4 Heat Transferred 1303 | 25 375 903 Parts Sabotaged . | . . . Parts Stolen . | . . . Parts Stripped . | . . . Power Chain Reactions . | . . . Alert | -11 -10 -10 ------- Run | Yrd Mat Sub Maximum Alert Level . | . . . Low Security (%) 100 | 100 100 . Level 1 . | . . . Level 2 . | . . . Level 3 . | . . . Level 4 . | . . . Level 5 . | . . . High Security . | . . . Max Security . | . . . Peak Influence 88 | 5 88 . Initial . | . . . Average 10 | . 12 . Influence Increases 227 | 5 127 95 Destroy 0b10 Robot/C 160 | . 100 60 Destroy 0b10 Robot/NC 5 | 5 . . Destroy Leader 40 | . 20 20 Successful Hack 7 | . 7 . Lose Combat Pursuer 15 | . . 15 Influence Decreases 207 | 5 47 155 Entered New Map 39 | . . 39 Time Decay 156 | 5 47 104 Lost Part 12 | . . 12 Squads Dispatched . | . . . Investigation . | . . . Extermination . | . . . Reinforcement . | . . . Assault . | . . . Garrison . | . . . Intercept . | . . . Searches Triggered . | . . . Construction Impeded . | . . . Haulers Reinforced . | . . . Active Scanning Responses . | . . . Cargo Convoy Interrupts . | . . . Stealth | -11 -10 -10 --------- Run | Yrd Mat Sub Distress Signals . | . . . Communications Jammed . | . . . Distress Signals . | . . . Times Spotted 21 | . 6 15 Peak Tracking Total 4 | . 4 3 Tactical Retreats 1 | . . 1 Traps | -11 -10 -10 ------- Run | Yrd Mat Sub Traps Triggered . | . . . Indirectly . | . . . Trap Hack Attempts . | . . . Triggered . | . . . Disarmed . | . . . Reprogrammed . | . . . Reused . | . . . Traps Extracted . | . . . Installed . | . . . Triggered . | . . . Machines | -11 -10 -10 ---------- Run | Yrd Mat Sub Machines Disabled . | . . . Max in Single Turn . | . . . Machines Repaired . | . . . Machines Dismantled . | . . . Machines Sabotaged . | . . . Overloaded Fab Kills . | . . . Hacking | -11 -10 -10 --------- Run | Yrd Mat Sub Machines Accessed 5 | . 3 2 Terminals 2 | . 2 . Fabricators . | . . . Repair Stations . | . . . Recycling Units 1 | . 1 . Scanalyzers . | . . . Garrison Access . | . . . Total Hacks 11 | . 8 3 Successful 7 | . 4 3 Failed 4 | . 4 . Catastrophic 1 | . 1 . Database Lockouts . | . . . Manual 14 | . 14 . Terminals 4 | . 4 . Fabricators . | . . . Repair Stations . | . . . Recycling Units 4 | . 4 . Scanalyzers . | . . . Garrison Access . | . . . Terminal Hacks 3 | . . 3 Record 1 | . . 1 Open Door 1 | . . 1 Release Object 1 | . . 1 Fabricator Hacks . | . . . Repair Station Hacks . | . . . Recycling Unit Hacks 2 | . 2 . Retrieve Components 2 | . 2 . Scanalyzer . | . . . Garrison Access Hacks . | . . . Unauthorized Hacks 2 | . 2 . Terminals 1 | . 1 . Botnet 1 | . 1 . Fabricators . | . . . Repair Stations . | . . . Recycling Units 1 | . 1 . Recyclers 1 | . 1 . Scanalyzers . | . . . Garrison Access . | . . . Data Cores Recovered . | . . . Used . | . . . Hacking Detections 3 | . 3 . Full Trace Events 1 | . 1 . Feedback Events . | . . . Feedback Blocked . | . . . Robot Schematics Acquired . | . . . Robots Built . | . . . Authchips . | . . . Time . | . . . Total Robot Build Rating . | . . . Part Schematics Acquired . | . . . Parts Built . | . . . Authchips . | . . . Time . | . . . Total Part Build Rating . | . . . Part Studies Acquired . | . . . Parts Repaired . | . . . Time . | . . . Parts Recycled . | . . . Recycled Matter . | . . . Retrieved Matter . | . . . Retrieved Components 1 | . 1 . Parts Scanalyzed . | . . . Part Schematics Acquired . | . . . Parts Damaged . | . . . Bothacking | -11 -10 -10 ------------ Run | Yrd Mat Sub Used RIF Installer . | . . . Robots Hacked . | . . . Non-combat . | . . . Combat . | . . . Robot Hacks Applied . | . . . Relay Couplers Released . | . . . Fabnet Peak Effective % . | . . . Robots Rewired . | . . . Allies Hacked . | . . . Hacks Repelled . | . . . Allies | -11 -10 -10 -------- Run | Yrd Mat Sub Total Allies . | . . . Largest Group . | . . . Highest-Rated Group . | . . . Highest-Rated Ally . | . . . Total Orders . | . . . Ally Attacks . | . . . Total Damage . | . . . Kills . | . . . Allies Corrupted . | . . . Allies Melted . | . . . Intel | -11 -10 -10 ------- Run | Yrd Mat Sub Active Infowar (turns) 3005 | 42 547 2416 Sensors 2923 | . 507 2416 Seismic 82 | 42 40 . Robot Analysis Total . | . . . Derelict Logs Recovered 1 | . . 1 Drone Launches . | . . . Drone Recoveries . | . . . Exploration | -11 -10 -10 ------------- Run | Yrd Mat Sub Turns Passed 3078 | 115 547 2416 Spaces Moved 1625 | 53 296 1276 Core 23 | 23 . . Treads 1218 | 30 296 892 Legs . | . . . Wheels 384 | . . 384 Hover . | . . . Flight . | . . . Fastest Speed 50 | 50 160 110 Average Speed 161 | 154 160 161 Slowest Speed 240 | 200 160 240 Overloaded Moves . | . . . Propulsion Burnouts . | . . . Robots Hopped . | . . . Potential Cave-ins . | . . . Cave-ins Triggered . | . . . Exploration Rate (%) 37 | 5 33 73 Regions Visited 2 Branch Regions 1 Pre-discovered Areas 1 | . . 1 Known Exits Taken . | . . . Unknown Exits Taken 2 | 1 1 . Scrap Searched 9 | . . 9 Spaces Dug . | . . . Terrain Destroyed 8 | . . 8 Melee . | . . . Projectile 8 | . . 8 AOE . | . . . Terrain Rammed . | . . . Walls Destroyed . | . . . Machines Disabled . | . . . Actions | -11 -10 -10 --------- Run | Yrd Mat Sub Total 1944 | 83 340 1521 Wait 125 | 9 12 104 Move 1623 | 52 295 1276 Hop . | . . . Pick Up 33 | 13 7 13 Fast Attach 5 | . . 5 Attach 15 | 7 1 7 Detach . | . . . Swap 2 | . 1 1 Drop 20 | . 6 14 Fire 107 | 2 18 87 Melee . | . . . Ram . | . . . Kick . | . . . Crush . | . . . Escape Stasis . | . . . Rewire 13 | . . 13 Trap . | . . . Miscellaneous 1 | . . 1 Route ------- -11/Scrapyard -10/Materials (discovered 2 exits: [*Mat] / *Sub) -10/Subcaves (discovered 1 exit: [*Mat]) History --------- Turn | Location | Event 10 | -11/Scrapyard | Discovered new exit (range 16) 116 | -11/Scrapyard | Entered Materials 308 | -10/Materials | Build established: Mutant 343 | -10/Materials | Discovered new exit (range 8) 591 | -10/Materials | Discovered new exit (range 9) 663 | -10/Materials | Entered Subcaves 707 | -10/Subcaves | Discovered new exit (range 13) 800 | -10/Subcaves | Released subatomizers from SUBCON Basin 857 | -10/Subcaves | A swath of the cavern ceiling suddenly collapsed 1228 | -10/Subcaves | Shifting Twisted Machinery released Sub. Beam Cannon 1649 | -10/Subcaves | Ambushed by Subdwellers from Twisted Machinery 2048 | -10/Subcaves | A swath of the cavern ceiling suddenly collapsed 2438 | -10/Subcaves | A Subdweller sparked back to life 2438 | -10/Subcaves | A Subdweller sparked back to life 2465 | -10/Subcaves | Found Prototype Energy Cannon 2467 | -10/Subcaves | Identified Powered Cannon 2468 | -10/Subcaves | Attached Powered Cannon, gained temporary slot: Power 2583 | -10/Subcaves | Shifting Twisted Machinery released Mak. Light Armor Plating 2597 | -10/Subcaves | Core integrity fell below 50% 2629 | -10/Subcaves | Shifting Twisted Machinery released Mak. Thermal Plating 3055 | -10/Subcaves | Learned location of Zion (-7) 3064 | -10/Subcaves | Disturbed a concealed Subdweller 3070 | -10/Subcaves | Core integrity fell below 20% 3079 | -10/Subcaves | Destroyed by SX-OOL(R) with Subdweller Machine Gun Last Messages --------------- 03025_ Searching scrap... 03025_ Found Riot Gun. 03025_ Found 35 Matter. 03026_ Searching scrap... 03026_ Found Scrap Shield. 03026_ Found 54 Matter. 03027_ Searching scrap... 03027_ Found Mak. Flight Unit. 03027_ Found Sub. Beam Cannon. 03027_ Found 41 Matter. 03039_ Acquired Sub. Power Source. 03042_ Dropped Sub. Machine Gun. 03043_ Dropped Sub. Beam Cannon. 03043_ Acquired Riot Gun. 03045_ Acquired Barrage Gun. 03046_ Acquired 10 matter. 03055_ Acquired derelict log, extracted data. World map updated: -7/Zion. 03064_ SX-OOL(R) angrily emerges from the Twisted Machinery. 03068_ SX-OOL(R): "UDINAU!" Map ----- +----------------------------------------------------+ | ?????????????????????????????????????????????????? | | ?????????????????????#######?????????????????????? | | ?????????????????????#"& &"#?????????????????????? | | ?????????????????????#&## %#?????????????????????? | | ?????????????????????# ####?????????????????????? | | ?????????????????????##*"###?????????????????????? | | ????????????????????###%&# ##???#####????????????? | | ?????????????????#### "&" ##?## ##???????????? | | ????########????# ## [ #?# #######?####? | | ##### ##?## ## #?# ## ### ## | | ### #### ### | | ### ## #??#### ## | | ## # #?????### ## # # ## # | | ## ##???????# ############ | | ## ####????????### ###??????????# | | # ## # ## ##?????????????####????????????## | | ###############?????????########??????????????# | | #????????????????????###<< < "###????????????## | | ##???????????????????## < ] "##????????????# | | ?????????????????????# [ "#???????????## | | ????????????????????##< !%%%!/ ##??????????# | | ????????????????????# %#%]" &"#??????????# | | ????????????????????#< << |%%%= "#??????????## | | ????????????????????# < ] "#???????????# | | ????????????????????#< R##### "#???????????# | | ????????????????????##< @# "#???????????# | | ?????????????????????# < ##""##???????????# | | ?????????????????????## < ## ####????????????## | | ????????????????????#######" <###??????????????## | | ????????????????????# ### < #####???????????# | | ???????????????????## #??????###### | | ???????????????????# ###### ##?????# | | ???????????????????# ##### #?????# | | ???????????????????# ## #####?# | | ???????????????????# ### | | ???????????????????## ## | | ????????????????????## * # | | ?????????????????????### ## | | ??????????????????????## ####### #? | | ???????????????????#### ##?????## ###? | | ???????????????????# ##???????# ###??? | | ???????????????????# ##??????? ##????? | | ???????????????????## ######?????? ##?????? | | ????????????????????###??????????### ##??????? | | ???????????????????????????????????# #???????? | | ?????????????????????????????????? #???????? | | ?????????????????????????????????? ##???????? | | ????????????????????????????????? ####????????? | | ????????????????????????????????? ????????????? | | ????????????????????????????????? ????????????? | +----------------------------------------------------+ Best States ------------- Heat Dissipation 25 Energy Generation 25 Energy Capacity 300 Matter Stores 300 Matter Capacity 300 Sight Range 16 Robot Scan Range 14 Terrain Scan Density 10 Evasion (%) 50 Recoil Reduction 2 Item Schematics ----------------- None Robot Schematics ------------------ None Fabricated ------------ Nothing Repaired ---------- Nothing Studied --------- None Alien Tech Used ----------------- None Achievements -------------- None Challenges ------------ None Game ------ Seed ShadeReflectiveGriptreads Manual? 0 Play Time 00:16:38 Cumulative 39.4 hours Start 2026.07.30 @ 10:56:24 End 2026.07.30 @ 11:13:06 Sessions 1 Manual Loads 0 Difficulty Rogue Special Mode None Game No. 71 Rogue 70 Adventurer 1 Explorer 0 Win Type - Total 0 Types 0/0/0/0/0/0/0/0/0/0 Lore% 30 Gallery% 29 Achievement% 22 Wizard Run 0 Options --------- Layout 0 ASCII 0 Keyboard 0 Movement Mouse Keybinds 0 Fullscreen 2 Font 18/SmallcapsGlow Map View 76x50 Zoom Use 0% Tactical HUD 1 Map Filters NONE Filters NONE Steam 1 RUN: 4234ea11-2e8c-417b-840e-859b28d7c5fc